fUST/lending_fUST_20251027
["ID","MTS","AMOUNT","RATE_DAILY","PERIOD"]
[392461853,1761508329525,500.0,0.00030136,120]
[392461860,1761509244276,400.0,0.00030136,120]
[392461930,1761509432815,-300.0,0.00017854,2]
[392461933,1761509432824,-74.4962205,0.00017854,2]
[392461978,1761509438500,-1125.5037795,0.00017854,2]
[392461979,1761509438510,-433.413,0.00017855,2]
[392461980,1761509438519,-500.0,0.00017855,2]
[392461981,1761509438529,-500.0,0.00017855,2]
[392461982,1761509438539,-500.0,0.00017855,2]
[392461983,1761509438548,-200.0,0.00017855,2]
[392461984,1761509438557,-500.0,0.00017855,2]
[392461985,1761509438566,-106.39104341,0.00017855,2]
[392461998,1761509623657,649.664726,0.00013699,2]
[392462005,1761509855854,165.658393,0.00013699,2]
[392462015,1761510130615,2963.738417,0.00030137,120]
[392462040,1761510510789,4770.95184037,0.0003,120]
[392462054,1761510635399,-921.8498832,0.00017184,2]
[392462084,1761510640002,-341.1626588,0.00017184,2]
[392462085,1761510640012,-300.0,0.00017797,2]
[392462086,1761510640023,-17898.5211895,0.00017798,2]
[392462087,1761510640034,-666.0,0.00017799,2]
[392462088,1761510640043,-250.0,0.00017809,2]
[392462089,1761510640054,-72.55325365,0.00017855,2]
[392462090,1761510640064,-208.8797509,0.00018205,2]
[392462091,1761510640073,-500.0,0.00018205,2]
[392462092,1761510640083,-500.0,0.00018205,2]
[392462093,1761510640092,-500.0,0.00018205,2]
[392462094,1761510640103,-161.49677604,0.00018205,2]
[392462095,1761510640112,-500.0,0.00018205,2]
[392462096,1761510640122,-357.35802077,0.00018205,2]
[392462097,1761510640132,-500.0,0.00018205,2]
[392462099,1761510640141,-500.0,0.00018205,2]
[392462101,1761510640152,-500.0,0.00018205,2]
[392462103,1761510640162,-473.22309727,0.00018205,2]
[392462104,1761510640171,-500.0,0.00018205,2]
[392462105,1761510640180,-500.0,0.00018205,2]
[392462106,1761510640190,-500.0,0.00018205,2]
[392462107,1761510640199,-500.0,0.00018205,2]
[392462108,1761510640208,-500.0,0.00018205,2]
[392462109,1761510640217,-500.0,0.00018205,2]
[392462110,1761510640226,-500.0,0.00018205,2]
[392462111,1761510640235,-500.0,0.00018205,2]
[392462112,1761510640244,-500.0,0.00018205,2]
[392462113,1761510640253,-500.0,0.00018205,2]
[392462114,1761510640262,-500.0,0.00018205,2]
[392462115,1761510640271,-500.0,0.00018205,2]
[392462116,1761510640280,-500.0,0.00018205,2]
[392462117,1761510640290,-500.0,0.00018205,2]
[392462118,1761510640299,-500.0,0.00018205,2]
[392462119,1761510640308,-500.0,0.00018205,2]
[392462120,1761510640318,-500.0,0.00018205,2]
[392462121,1761510640329,-500.0,0.00018205,2]
[392462122,1761510640338,-500.0,0.00018205,2]
[392462123,1761510640347,-500.0,0.00018205,2]
[392462124,1761510640357,-500.0,0.00018205,2]
[392462125,1761510640368,-500.0,0.00018205,2]
[392462126,1761510640378,-500.0,0.00018205,2]
[392462127,1761510640388,-500.0,0.00018205,2]
[392462128,1761510640398,-500.0,0.00018205,2]
[392462129,1761510640408,-500.0,0.00018205,2]
[392462130,1761510640418,-500.0,0.00018205,2]
[392462131,1761510640428,-500.0,0.00018205,2]
[392462132,1761510640438,-500.0,0.00018205,2]
[392462133,1761510640448,-500.0,0.00018205,2]
[392462134,1761510640458,-500.0,0.00018205,2]
[392462135,1761510640469,-500.0,0.00018205,2]
[392462136,1761510640478,-500.0,0.00018205,2]
[392462137,1761510640489,-500.0,0.00018205,2]
[392462138,1761510640498,-500.0,0.00018205,2]
[392462139,1761510640507,-500.0,0.00018205,2]
[392462140,1761510640516,-500.0,0.00018205,2]
[392462141,1761510640525,-500.0,0.00018205,2]
[392462142,1761510640534,-500.0,0.00018205,2]
[392462143,1761510640543,-500.0,0.00018205,2]
[392462144,1761510640553,-500.0,0.00018205,2]
[392462145,1761510640562,-500.0,0.00018205,2]
[392462146,1761510640571,-500.0,0.00018205,2]
[392462147,1761510640581,-500.0,0.00018205,2]
[392462148,1761510640591,-500.0,0.00018205,2]
[392462149,1761510640600,-500.0,0.00018209,2]
[392462150,1761510640609,-500.0,0.00018209,2]
[392462151,1761510640618,-500.0,0.00018209,2]
[392462152,1761510640627,-300.0,0.00018211,2]
[392462153,1761510640636,-300.0,0.00018211,2]
[392462154,1761510640645,-300.0,0.00018211,2]
[392462155,1761510640654,-300.0,0.00018211,2]
[392462156,1761510640663,-300.0,0.00018211,2]
[392462157,1761510640672,-300.0,0.00018211,2]
[392462158,1761510640682,-300.0,0.00018211,2]
[392462159,1761510640691,-300.0,0.00018211,2]
[392462160,1761510640701,-300.0,0.00018211,2]
[392462161,1761510640710,-300.0,0.00018211,2]
[392462162,1761510640719,-300.0,0.00018211,2]
[392462163,1761510640728,-300.0,0.00018211,2]
[392462164,1761510640740,-300.0,0.00018211,2]
[392462165,1761510640750,-300.0,0.00018211,2]
[392462166,1761510640760,-300.0,0.00018211,2]
[392462167,1761510640769,-164.42682938,0.000183,2]
[392462168,1761510640778,-688.74247767,0.000183,2]
[392462169,1761510640788,-181.56,0.00018327,2]
[392462170,1761510640798,-160.0,0.00018371,2]
[392462171,1761510640807,-160.0,0.00018371,2]
[392462172,1761510640819,-403.49456409,0.00018371,2]
[392462173,1761510640827,-160.0,0.00018381,2]
[392462174,1761510640836,-500.0,0.00018399,2]
[392462175,1761510640846,-1231.86231534,0.000184,2]
[392462176,1761510640855,-305.84489178,0.000184,2]
[392462177,1761510640864,-177.4108125,0.000184,2]
[392462178,1761510640873,-500.0,0.00018483,2]
[392462179,1761510640883,-160.0,0.00018494,2]
[392462180,1761510640892,-688.74247767,0.000185,2]
[392462181,1761510640901,-600.0,0.00018574,2]
[392462182,1761510640910,-1231.86231534,0.000186,2]
[392462183,1761510640919,-305.84489178,0.000186,2]
[392462184,1761510640929,-177.4108125,0.000186,2]
[392462185,1761510640938,-393.3110871,0.000186,2]
[392462186,1761510640947,-688.74247767,0.000187,2]
[392462187,1761510640957,-1231.86231534,0.000187,2]
[392462188,1761510640966,-177.4108125,0.000187,2]
[392462189,1761510640975,-305.84489178,0.000187,2]
[392462190,1761510640984,-500.0,0.00018757,2]
[392462191,1761510640993,-688.74247767,0.000189,2]
[392462192,1761510641003,-1231.86231534,0.000189,2]
[392462193,1761510641013,-305.84489178,0.000189,2]
[392462194,1761510641022,-500.0,0.00019031,2]
[392462195,1761510641031,-688.74247767,0.000191,2]
[392462196,1761510641041,-1231.86231534,0.000191,2]
[392462197,1761510641052,-305.84489178,0.000191,2]
[392462198,1761510641062,-34884.28806051,0.00019163,2]
[392462199,1761510641072,-500.0,0.00019199,2]
[392462200,1761510641082,-500.0,0.00019199,2]
[392462201,1761510641091,-363.12,0.000192,2]
[392462202,1761510641101,-500.0,0.00019305,2]
[392462203,1761510641110,-248.54331554,0.00019322,2]
[392462204,1761510641121,-151.0,0.00019338,2]
[392462205,1761510641131,-155.54928848,0.00019338,2]
[392462206,1761510641142,-179.32141721,0.00019341,2]
[392462207,1761510641151,-974.85375332,0.00019363,2]
[392462208,1761510641161,-1319.29369386,0.00019363,2]
[392462209,1761510641170,-500.0,0.00019372,2]
[392462210,1761510641179,-460.50202591,0.00019373,2]
[392462211,1761510641189,-500.0,0.00019373,2]
[392462212,1761510641198,-500.07598891,0.00019373,2]
[392462213,1761510641208,-500.0,0.00019373,2]
[392462214,1761510641218,-500.85750236,0.00019373,2]
[392462215,1761510641228,-442.97174692,0.00019373,2]
[392462216,1761510641238,-500.0,0.00019373,2]
[392462217,1761510641247,-500.0,0.00019373,2]
[392462218,1761510641257,-500.0,0.00019373,2]
[392462219,1761510641267,-451.94778134,0.00019373,2]
[392462220,1761510641276,-500.0,0.00019373,2]
[392462221,1761510641286,-500.0,0.00019373,2]
[392462222,1761510641297,-500.0,0.00019373,2]
[392462223,1761510641307,-597.52542925,0.00019373,2]
[392462224,1761510641317,-500.0,0.00019373,2]
[392462225,1761510641326,-500.0,0.00019373,2]
[392462226,1761510641335,-500.0,0.00019373,2]
[392462227,1761510641346,-500.0,0.00019373,2]
[392462228,1761510641356,-501.22472656,0.00019373,2]
[392462229,1761510641366,-500.0,0.00019373,2]
[392462230,1761510641375,-500.0,0.00019373,2]
[392462231,1761510641384,-500.0,0.00019373,2]
[392462232,1761510641393,-500.06375083,0.00019373,2]
[392462233,1761510641402,-500.0,0.00019373,2]
[392462234,1761510641411,-500.0,0.00019373,2]
[392462235,1761510641420,-500.0,0.00019373,2]
[392462236,1761510641429,-500.0,0.00019373,2]
[392462237,1761510641439,-857.32,0.0001939,3]
[392462238,1761510641448,-428.66,0.0001939,3]
[392462239,1761510641457,-214.33,0.0001939,3]
[392462240,1761510641465,-643.02,0.0001939,3]
[392462241,1761510641474,-500.0,0.00019398,2]
[392462242,1761510641484,-266.87101714,0.00019398,2]
[392462374,1761510662177,656.16275011,0.00018262,8]
[392462390,1761511556588,333.78,0.00030137,120]
[392462393,1761511677727,482.49190327,0.00018262,8]
[392462419,1761511831964,-285.05476612,0.00016791,7]
[392462491,1761511846001,-656.16275011,0.00016791,7]
[392462514,1761512376616,617.181489,0.00013699,2]
[392462519,1761512742410,2222.803812,0.00030137,120]
[392462673,1761513038028,-464.58,0.00015154,2]
[392462675,1761513038040,-1058.504875,0.00015154,2]
[392462677,1761513038049,-85.97962776,0.00017483,2]
[392462680,1761513038060,-214.02037224,0.00017483,2]
[392462682,1761513038069,-2000.32898933,0.00017484,2]
[392462922,1761513040427,-551.95240617,0.00017484,2]
[392463153,1761513642445,165.658393,0.00013699,2]
[392463154,1761513731917,1343.23420276,0.0001499,2]
[392463164,1761513860245,5277.17477542,0.0001499,2]
[392463166,1761513901200,183.588196,0.00015093,2]
[392463229,1761514232450,-300.0,0.0001609,2]
[392463231,1761514232461,-1200.0,0.0001609,2]
[392463233,1761514232470,-16755.89195571,0.00016091,2]
[392463235,1761514232479,-1029.0,0.00016091,2]
[392463237,1761514232488,-500.0,0.00016092,2]
[392463239,1761514232497,-300.0,0.00016094,2]
[392463241,1761514232507,-300.0,0.00016094,2]
[392463243,1761514232516,-300.0,0.00016094,2]
[392463245,1761514232525,-300.0,0.00016094,2]
[392463247,1761514232533,-300.0,0.00016094,2]
[392463249,1761514232542,-300.0,0.00016094,2]
[392463251,1761514232551,-300.0,0.00016094,2]
[392463253,1761514232560,-300.0,0.00016094,2]
[392463254,1761514232568,-300.0,0.00016094,2]
[392463256,1761514232578,-300.0,0.00016094,2]
[392463257,1761514232587,-300.0,0.00016094,2]
[392463259,1761514232596,-300.0,0.00016094,2]
[392463261,1761514232605,-300.0,0.00016094,2]
[392463262,1761514232614,-300.0,0.00016094,2]
[392463263,1761514232622,-300.0,0.00016094,2]
[392463264,1761514232631,-600.0,0.00016415,2]
[392463265,1761514232641,-151.0,0.00016438,2]
[392463266,1761514232650,-500.0,0.00016438,2]
[392463267,1761514232659,-500.0,0.00016712,2]
[392463268,1761514232669,-631.506271,0.00016745,2]
[392463269,1761514232679,-269.6213378,0.0001675,2]
[392463270,1761514232688,-1342.3023982,0.00016751,2]
[392463271,1761514232697,-151.0,0.00016751,2]
[392463272,1761514232706,-151.0,0.00016751,2]
[392463273,1761514232715,-1371.43318431,0.00017,2]
[392463274,1761514232724,-2742.5207662,0.00017001,2]
[392463275,1761514232733,-500.0,0.00017116,2]
[392463276,1761514232742,-151.0,0.00017383,2]
[392463277,1761514232752,-151.0,0.00017383,2]
[392463278,1761514232761,-151.0,0.00017383,2]
[392463279,1761514232770,-151.0,0.00017383,2]
[392463280,1761514232779,-161.55711715,0.00017383,2]
[392463281,1761514232788,-151.0,0.00017383,2]
[392463282,1761514232797,-151.0,0.00017383,2]
[392463283,1761514232807,-154.70207885,0.00017383,2]
[392463284,1761514232816,-251.70334,0.00017383,2]
[392463285,1761514232824,-151.0,0.00017438,2]
[392463286,1761514232833,-151.0,0.00017438,2]
[392463287,1761514232842,-666.0,0.00017442,2]
[392463288,1761514232851,-500.0,0.00017482,2]
[392463289,1761514232860,-165.0,0.00017484,2]
[392463290,1761514232869,-165.0,0.00017484,2]
[392463291,1761514232878,-166.0,0.00017484,2]
[392463292,1761514232887,-165.0,0.00017484,2]
[392463293,1761514232896,-166.0,0.00017484,2]
[392463294,1761514232905,-165.0,0.00017484,2]
[392463295,1761514232915,-168.2197707,0.00017484,2]
[392463296,1761514232924,-167.0,0.00017484,2]
[392463297,1761514232933,-167.0,0.00017484,2]
[392463298,1761514232942,-166.0,0.00017484,2]
[392463299,1761514232951,-167.0,0.00017484,2]
[392463300,1761514232960,-166.0,0.00017484,2]
[392463301,1761514232969,-331.0,0.00017484,2]
[392463302,1761514232983,-300.20986799,0.00017484,2]
[392463303,1761514232992,-331.0,0.00017484,2]
[392463304,1761514233002,-331.0,0.00017484,2]
[392463305,1761514233011,-331.0,0.00017484,2]
[392463306,1761514233020,-331.0,0.00017484,2]
[392463307,1761514233029,-331.0,0.00017484,2]
[392463308,1761514233038,-331.0,0.00017484,2]
[392463309,1761514233047,-331.0,0.00017484,2]
[392463310,1761514233056,-275.69534851,0.00017484,2]
[392463311,1761514233065,-166.0,0.00017484,2]
[392463312,1761514233075,-166.0,0.00017484,2]
[392463313,1761514233083,-331.0,0.00017484,2]
[392463314,1761514233092,-331.0,0.00017484,2]
[392463315,1761514233101,-198.0,0.00017493,2]
[392463316,1761514233111,-198.0,0.00017493,2]
[392463317,1761514233120,-500.0,0.0001757,2]
[392463318,1761514233129,-1000.0,0.00017571,2]
[392463319,1761514233138,-590.6573528,0.00017578,2]
[392463320,1761514233147,-590.6573528,0.00017578,2]
[392463321,1761514233156,-587.5320042,0.00017578,2]
[392463322,1761514233166,-420.0,0.0001759,2]
[392463323,1761514233175,-443.25948272,0.00017678,2]
[392463324,1761514233188,-147.39787008,0.00017678,2]
[392463325,1761514233197,-158.17393945,0.00017678,2]
[392463326,1761514233211,-970.83812585,0.00017678,2]
[392463327,1761514233221,-224.71773904,0.00017679,2]
[392463328,1761514233230,-12.38629065,0.00017679,2]
[392463346,1761514243452,-498.50815463,0.00016414,2]
[392463347,1761514243461,-394.19561963,0.00016414,2]
[392463352,1761514246583,-105.80438037,0.00016414,2]
[392463353,1761514246593,-500.0,0.00016414,2]
[392463354,1761514246602,-500.0,0.00016414,2]
[392463355,1761514246611,-500.0,0.00016414,2]
[392463356,1761514246620,-500.0,0.00016414,2]
[392463357,1761514246631,-500.0,0.00016414,2]
[392463358,1761514246641,-500.0,0.00016414,2]
[392463360,1761514246650,-500.0,0.00016414,2]
[392463362,1761514246659,-457.89206731,0.00016414,2]
[392463363,1761514246668,-500.0,0.00016414,2]
[392463364,1761514246677,-500.0,0.00016414,2]
[392463365,1761514246686,-500.0,0.00016414,2]
[392463366,1761514246695,-500.0,0.00016414,2]
[392463367,1761514246704,-500.0,0.00016414,2]
[392463368,1761514246714,-500.0,0.00016414,2]
[392463369,1761514246723,-500.0,0.00016414,2]
[392463370,1761514246732,-500.0,0.00016414,2]
[392463371,1761514246741,-500.0,0.00016414,2]
[392463372,1761514246751,-415.83179797,0.00016414,2]
[392463374,1761514408815,200.0,0.00016413,10]
[392463375,1761514409200,200.0,0.00016413,10]
[392463376,1761514409444,200.0,0.00016413,10]
[392463377,1761514409741,200.0,0.00016413,10]
[392463378,1761514410191,200.0,0.00016413,10]
[392463379,1761514410563,200.0,0.00016413,10]
[392463380,1761514410903,200.0,0.00016413,10]
[392463381,1761514411217,200.0,0.00016413,10]
[392463382,1761514411567,200.0,0.00016413,10]
[392463383,1761514411855,200.0,0.00016413,10]
[392463384,1761514412151,200.0,0.00016413,10]
[392463385,1761514412428,200.0,0.00016413,10]
[392463386,1761514412749,200.0,0.00016413,10]
[392463387,1761514413058,200.0,0.00016413,10]
[392463388,1761514413387,200.0,0.00016413,10]
[392463389,1761514413843,200.0,0.00016413,10]
[392463390,1761514413991,200.0,0.00016413,10]
[392463391,1761514414299,200.0,0.00016413,10]
[392463392,1761514414676,200.0,0.00016413,10]
[392463393,1761514414898,200.0,0.00016413,10]
[392463394,1761514415216,200.0,0.00016413,10]
[392463395,1761514415515,200.0,0.00016413,10]
[392463396,1761514415806,200.0,0.00016413,10]
[392463397,1761514416099,284.906536,0.00016413,10]
[392463399,1761515117198,629.67487,0.00013699,2]
[392463446,1761515436679,-208.28306984,0.00015779,2]
[392463447,1761515436688,-88.01981682,0.00015894,2]
[392463448,1761515436699,-117.69487567,0.00015894,2]
[392463449,1761515436708,-407.88935704,0.00016091,2]
[392463450,1761515436846,-92.11064296,0.00016091,2]
[392463451,1761515436856,-300.0,0.00016404,2]
[392463452,1761515436865,-300.0,0.00016404,2]
[392463453,1761515436874,-163.20935704,0.00016404,2]
[392463454,1761515436887,-136.79064296,0.00016404,2]
[392463455,1761515436896,-201.0,0.00016404,2]
[392463456,1761515436906,-1200.0,0.00016404,2]
[392463457,1761515436915,-500.0,0.00016404,2]
[392463458,1761515436925,-451.0349338,0.00016404,2]
[392463459,1761515436934,-500.0,0.00016404,2]
[392463460,1761515436943,-500.0,0.00016404,2]
[392463461,1761515436952,-500.0,0.00016404,2]
[392463462,1761515436962,-500.0,0.00016404,2]
[392463463,1761515436971,-500.0,0.00016404,2]
[392463464,1761515436980,-454.87608076,0.00016404,2]
[392463465,1761515436989,-500.0,0.00016404,2]
[392463468,1761515436998,-500.0,0.00016404,2]
[392463470,1761515437007,-500.0,0.00016404,2]
[392463471,1761515437016,-500.0,0.00016404,2]
[392463472,1761515437025,-500.0,0.00016404,2]
[392463473,1761515437034,-500.0,0.00016404,2]
[392463474,1761515437043,-500.0,0.00016404,2]
[392463475,1761515437052,-96.71239247,0.00016404,2]
[392463476,1761515437066,-403.28760753,0.00016404,2]
[392463477,1761515437075,-500.0,0.00016404,2]
[392463478,1761515437084,-90.10632756,0.00016404,2]
[392463479,1761515437094,-409.89367244,0.00016404,2]
[392463480,1761515437103,-32.99187028,0.00016404,2]
[392463485,1761515438526,-279.10748082,0.00016404,2]
[392463486,1761515438538,-187.9006489,0.00016404,2]
[392463487,1761515438548,-316.44039037,0.00016404,2]
[392463488,1761515438557,-500.0,0.00016404,2]
[392463489,1761515438567,-500.0,0.00016404,2]
[392463490,1761515438576,-283.97041058,0.00016404,2]
[392463491,1761515438587,-216.02958942,0.00016404,2]
[392463492,1761515438596,-391.47889507,0.00016404,2]
[392463493,1761515438609,-108.52110493,0.00016404,2]
[392463494,1761515438619,-500.0,0.00016404,2]
[392463495,1761515438628,-500.0,0.00016404,2]
[392463496,1761515438637,-326.47306813,0.00016404,2]
[392463497,1761515438646,-94.82271023,0.00016404,2]
[392463498,1761515438661,-405.17728977,0.00016404,2]
[392463499,1761515438670,-641.27038897,0.00016404,2]
[392463500,1761515438679,-500.0,0.00016404,2]
[392463501,1761515438688,-500.0,0.00016404,2]
[392463502,1761515438698,-500.0,0.00016404,2]
[392463503,1761515438707,-300.0,0.00016404,2]
[392463504,1761515438717,-500.0,0.00016404,2]
[392463505,1761515438726,-500.0,0.00016404,2]
[392463506,1761515438736,-500.0,0.00016404,2]
[392463507,1761515438745,-500.0,0.00016404,2]
[392463508,1761515438755,-500.0,0.00016404,2]
[392463509,1761515438764,-536.2041051,0.00016404,2]
[392463510,1761515438774,-221.65982848,0.00016404,2]
[392463511,1761515438783,-500.0,0.00016404,2]
[392463512,1761515438792,-500.0,0.00016404,2]
[392463513,1761515438801,-500.0,0.00016404,2]
[392463514,1761515438811,-500.0,0.00016404,2]
[392463515,1761515438821,-500.0,0.00016404,2]
[392463516,1761515438830,-500.0,0.00016404,2]
[392463517,1761515438841,-500.0,0.00016404,2]
[392463518,1761515438852,-500.0,0.00016404,2]
[392463519,1761515438862,-500.0,0.00016404,2]
[392463520,1761515438871,-500.0,0.00016404,2]
[392463521,1761515438881,-500.0,0.00016404,2]
[392463522,1761515438890,-500.0,0.00016404,2]
[392463523,1761515438899,-500.0,0.00016404,2]
[392463524,1761515438909,-543.02028607,0.00016404,2]
[392463525,1761515438918,-500.0,0.00016404,2]
[392463526,1761515438927,-500.0,0.00016404,2]
[392463527,1761515438937,-500.0,0.00016404,2]
[392463528,1761515438947,-500.0,0.00016404,2]
[392463529,1761515438956,-500.0,0.00016404,2]
[392463530,1761515438966,-7285.76367291,0.00016405,2]
[392463531,1761515438975,-151.0,0.00016407,2]
[392463532,1761515438985,-151.0,0.00016407,2]
[392463533,1761515438995,-151.0,0.00016407,2]
[392463534,1761515439003,-151.0,0.00016407,2]
[392463535,1761515439012,-500.0,0.00016409,2]
[392463536,1761515439022,-500.0,0.00016409,2]
[392463537,1761515439032,-500.0,0.0001641,2]
[392463538,1761515439041,-500.0,0.0001641,2]
[392463539,1761515439051,-600.0,0.00016741,2]
[392463540,1761515439060,-300.0,0.00016741,2]
[392463541,1761515439071,-154.57228819,0.0001675,2]
[392463563,1761515446719,-267.8340928,0.0001675,2]
[392463564,1761515446731,-562.8054072,0.000168,2]
[392463565,1761515446743,-27.8519456,0.000168,2]
[392463566,1761515446752,-590.6573528,0.000168,2]
[392463567,1761515446761,-590.6573528,0.000168,2]
[392463568,1761515446770,-705.036053,0.00016999,2]
[392463569,1761515446780,-1714.9549519,0.00016999,2]
[392463571,1761515446789,-1668.72639152,0.00016999,2]
[392463573,1761515517296,1667.102859,0.00030137,120]
[392463575,1761515644206,5000.0,0.00018262,8]
[392463576,1761515848320,200.0,0.00016401,10]
[392463577,1761515848701,200.0,0.00016401,10]
[392463578,1761515849029,200.0,0.00016401,10]
[392463579,1761515849348,200.0,0.00016401,10]
[392463580,1761515849646,200.0,0.00016401,10]
[392463581,1761515849939,200.0,0.00016401,10]
[392463582,1761515850229,200.0,0.00016401,10]
[392463583,1761515850547,200.0,0.00016401,10]
[392463584,1761515850839,200.0,0.00016401,10]
[392463585,1761515851140,200.0,0.00016401,10]
[392463586,1761515851573,200.0,0.00016401,10]
[392463587,1761515851727,200.0,0.00016401,10]
[392463588,1761515852013,200.0,0.00016401,10]
[392463589,1761515852305,200.0,0.00016401,10]
[392463590,1761515852590,200.0,0.00016401,10]
[392463591,1761515852863,200.0,0.00016401,10]
[392463592,1761515853155,200.0,0.00016401,10]
[392463593,1761515853425,200.0,0.00016401,10]
[392463594,1761515853729,200.0,0.00016401,10]
[392463595,1761515854010,200.0,0.00016401,10]
[392463596,1761515854296,200.0,0.00016401,10]
[392463597,1761515854583,200.0,0.00016401,10]
[392463598,1761515855057,200.0,0.00016401,10]
[392463599,1761515855133,284.906536,0.00016401,10]
[392463601,1761516393016,643.38463956,0.00015095,2]
[392463602,1761516415546,643.38463956,0.00015095,2]
[392463720,1761516437744,643.38463956,0.00015095,2]
[392463721,1761516459941,643.38463956,0.00015095,2]
[392463722,1761516461334,165.658393,0.00013699,2]
[392463723,1761516475857,643.38463956,0.00015095,2]
[392463724,1761516483687,643.38463956,0.00015095,2]
[392463725,1761516498884,293.19850981,0.00015095,2]
[392463726,1761516506748,350.18612975,0.00014944,2]
[392463727,1761516528805,350.18612975,0.00014944,2]
[392463728,1761516551072,350.18612975,0.00014944,2]
[392463729,1761516573108,350.18612975,0.00014944,2]
[392463730,1761516595209,350.18612975,0.00014944,2]
[392463731,1761516617202,350.18612975,0.00014944,2]
[392463836,1761516635845,-350.18612975,0.00015095,2]
[392463837,1761516635855,-643.38463956,0.00015248,2]
[392463838,1761516635864,-300.0,0.00015778,2]
[392463839,1761516635873,-1200.0,0.00015778,2]
[392463840,1761516635883,-544.55036586,0.00015779,2]
[392463841,1761516635892,-2176.02326196,0.00015779,2]
[392463842,1761516635902,-482.94822428,0.00015779,2]
[392463843,1761516635911,-1929.86110421,0.00015779,2]
[392463844,1761516635920,-1631.517716,0.00016069,2]
[392463845,1761516635929,-205.83530187,0.00016295,2]
[392463846,1761516635938,-1505.34109055,0.00016295,2]
[392463847,1761516635948,-397.51375966,0.00016394,2]
[392463848,1761516635958,-500.0,0.00016394,2]
[392463849,1761516635967,-500.0,0.00016394,2]
[392463850,1761516635976,-500.0,0.00016394,2]
[392463851,1761516635987,-500.0,0.00016394,2]
[392463854,1761516635996,-500.0,0.00016394,2]
[392463856,1761516636006,-500.0,0.00016394,2]
[392463858,1761516636015,-500.0,0.00016394,2]
[392463859,1761516636024,-500.0,0.00016394,2]
[392463860,1761516636033,-507.67582154,0.00016394,2]
[392463861,1761516636042,-500.0,0.00016394,2]
[392463863,1761516636051,-500.0,0.00016394,2]
[392463865,1761516636060,-500.0,0.00016394,2]
[392463866,1761516636069,-500.0,0.00016394,2]
[392463867,1761516636078,-529.12444725,0.00016394,2]
[392463868,1761516636088,-500.0,0.00016394,2]
[392463869,1761516636098,-307.49750495,0.00016394,2]
[392463870,1761516636107,-581.67335813,0.00016394,2]
[392463871,1761516636116,-500.0,0.00016394,2]
[392463872,1761516636125,-500.0,0.00016394,2]
[392463873,1761516636135,-500.0,0.00016394,2]
[392463874,1761516636144,-500.0,0.00016394,2]
[392463875,1761516636154,-500.0,0.00016394,2]
[392463876,1761516636163,-239.12963598,0.00016394,2]
[392463877,1761516636174,-500.0,0.00016394,2]
[392463878,1761516636183,-500.0,0.00016394,2]
[392463879,1761516636193,-500.0,0.00016394,2]
[392463880,1761516636203,-500.0,0.00016394,2]
[392463881,1761516636213,-500.0,0.00016394,2]
[392463882,1761516636222,-500.0,0.00016394,2]
[392463883,1761516636231,-500.0,0.00016394,2]